Cogmind - Beta 17.1 @@@ ROGUE MODE // 2026.09.09 @ 21:28:51 Player: SunShine214 Result: Core destroyed Performance ------------- Evolutions (0) 0 Regions Visited (0) 0 Robots Destroyed (5) 25 Value Destroyed (34) 34 Prototype IDs (0) 0 Alien Tech Used (0) 0 Bonus (0) 0 TOTAL SCORE: 59 Bonus ------- None Cogmind --------- Core Integrity 0/250 Matter 204/300 Energy 87/100 System Corruption 50% Temperature Cool (0) Movement Core (200) Ox3 Location -11/Scrapyard Parts ------- > --- POWER (1) -------- Light Ion Engine > --- PROPULSION (2) --- Light Treads Light Treads > --- UTILITY (2) ------ Small Storage Unit > --- WEAPON (2) ------- EM Pulse Gun Small Laser > --- INVENTORY (8) ---- (None) Peak State ------------ > --- POWER ------------ Light Ion Engine > --- PROPULSION ------- Light Treads Light Treads > --- UTILITY ---------- Small Storage Unit > --- WEAPON ----------- EM Pulse Gun Small Laser > --- INVENTORY -------- (None) [Rating: 6] Favorites ----------- Power Light Ion Engine Engine Light Ion Engine Propulsion Light Treads Treads Light Treads Utility Small Storage Unit Storage Small Storage Unit Weapon Small Laser Energy Gun Small Laser Build | -11 ------- Run | Yrd Slots Evolved . | . Power . | . Propulsion . | . Utility . | . Weapon . | . Parts Attached 6 | 6 Power 1 | 1 Engine 1 | 1 Core . | . Reactor . | . Propulsion 2 | 2 Treads 2 | 2 Leg . | . Wheel . | . Hover . | . Flight . | . Utility 1 | 1 Device . | . Storage 1 | 1 Processor . | . Hackware . | . Protection . | . Artifact . | . Weapon 2 | 2 Energy Gun 2 | 2 Energy Cannon . | . Ballistic Gun . | . Ballistic Cannon . | . Launcher . | . Special Weapon . | . Impact Weapon . | . Slashing Weapon . | . Piercing Weapon . | . Special Melee Weapon . | . Unidentified Prototypes . | . Parts Lost . | . Power . | . Propulsion . | . Utility . | . Weapon . | . Highest Loss Streak . | . To Critical Strikes . | . Average Backups . | . Power . | . Propulsion . | . Utility . | . Weapon . | . Tool/Special . | . Unused Backups . | . Power . | . Propulsion . | . Utility . | . Weapon . | . Tool/Special . | . Average Slot Usage (%) . | . Peak Build Rating 6 | 6 Average Rating 5 | 5 On Entrance . | . Avg Prop Armor Cover (%) . | . Naked Turns . | . Heaviest Build 11 | 11 Greatest Support 40 | 40 Greatest Overweight (x) . | . Average Overweight (x) . | . Largest Inventory Capacity 8 | 8 Average Capacity 7 | 7 Most Carried . | . Average Carried . | . Final Capacity 8 | 8 Final Carried . | . Class Distribution -------------------- None Dominant Class ---------------- None Resources | -11 ----------- Run | Yrd Matter Collected 191 | 191 Remotely . | . Salvage Created 123 | 123 Parts 13 | 13 Haulers Intercepted . | . Recyclers Shooed . | . Parts Field Recycled . | . Retrieved Matter . | . Parts Self-Destructed . | . Prevented . | . Parts Restored . | . Kills | -11 ------- Run | Yrd Combat Hostiles Destroyed . | . Classes Destroyed 2 | 2 Tunneler 4 | 4 Recycler 1 | 1 Best Kill Streak 4 | 4 Combat Bots Only . | . Max Kills in Single Turn 2 | 2 Gunslinging . | . Exploded . | . Melee . | . Uniques/NPCs Destroyed . | . Combat | -11 -------- Run | Yrd Hostile Shots Fired . | . Missed . | . Hits . | . Damage Taken 345 | 345 Core 256 | 256 Absorbed by Shields . | . Core Remaining (%) . | . Volleys Fired 11 | 11 Largest 2 | 2 Hottest 80 | 80 Shots Fired 22 | 22 Gun 22 | 22 Cannon . | . Launcher . | . Special . | . Kinetic . | . Thermal 11 | 11 Explosive . | . Electromagnetic 11 | 11 Robot Hit Streak 4 | 4 Robot Miss Streak 3 | 3 Penetration Max . | . Secondary Targets . | . Shots Hit Robots 12 | 12 Core Hits 6 | 6 Critical Kills . | . Critical Parts Destroyed . | . Critical Strikes . | . Melee Attacks . | . Impact . | . Slashing . | . Piercing . | . Sneak Attacks . | . Combat Hostiles . | . Follow-up Attacks . | . Damage Inflicted 385 | 385 Guns 135 | 135 Cannons . | . Explosions 128 | 128 Melee . | . Ramming 122 | 122 Kinetic . | . Thermal 181 | 181 Explosive . | . Electromagnetic 82 | 82 Impact . | . Slashing . | . Piercing . | . Highest Corruption 50 | 50 Average Corruption 29 | 29 Corruption Purged . | . Corruption Blocked . | . Effects 5 | 5 Message Errors 1 | 1 Matter Fused 3 | 3 Energy Discharges 1 | 1 Overload Shots . | . Overflow Damage 21 | 21 Projectiles . | . Explosions 21 | 21 Melee . | . Knockbacks . | . Impact . | . Kinetic . | . Secondary . | . Self-Inflicted Damage 134 | 134 Shots 1 | 1 Rammed . | . Targets Rammed . | . Kicked . | . Crushed . | . Highest Temperature 126 | 126 Average Temperature 54 | 54 Received Heat Transfer . | . Siege Activations . | . Martial Activations . | . Shielding Activations . | . Robots Disrupted . | . Combat Hostiles . | . Robots Corrupted . | . Combat Hostiles . | . Parts Fried . | . Impact Corruptions . | . Robots Melted . | . Combat Hostiles . | . Parts Melted . | . Heat Transferred 275 | 275 Parts Sabotaged . | . Parts Stolen . | . Parts Stripped . | . Power Chain Reactions 2 | 2 Alert | -11 ------- Run | Yrd Maximum Alert Level . | . Low Security (%) 100 | 100 Level 1 . | . Level 2 . | . Level 3 . | . Level 4 . | . Level 5 . | . High Security . | . Max Security . | . Peak Influence 15 | 15 Initial . | . Average 1 | 1 Influence Increases 25 | 25 Destroy 0b10 Robot/NC 25 | 25 Influence Decreases 25 | 25 Time Decay 25 | 25 Squads Dispatched . | . Investigation . | . Extermination . | . Reinforcement . | . Assault . | . Garrison . | . Intercept . | . Searches Triggered . | . Construction Impeded . | . Haulers Reinforced . | . Active Scanning Responses . | . Cargo Convoy Interrupts . | . Stealth | -11 --------- Run | Yrd Distress Signals . | . Communications Jammed . | . Distress Signals . | . Times Spotted . | . Peak Tracking Total . | . Tactical Retreats . | . Traps | -11 ------- Run | Yrd Traps Triggered . | . Indirectly . | . Trap Hack Attempts . | . Triggered . | . Disarmed . | . Reprogrammed . | . Reused . | . Traps Extracted . | . Installed . | . Triggered . | . Machines | -11 ---------- Run | Yrd Machines Disabled . | . Max in Single Turn . | . Machines Repaired . | . Machines Dismantled . | . Machines Sabotaged . | . Overloaded Fab Kills . | . Hacking | -11 --------- Run | Yrd Machines Accessed . | . Terminals . | . Fabricators . | . Repair Stations . | . Recycling Units . | . Scanalyzers . | . Garrison Access . | . Total Hacks . | . Successful . | . Failed . | . Catastrophic . | . Database Lockouts . | . Manual . | . Terminals . | . Fabricators . | . Repair Stations . | . Recycling Units . | . Scanalyzers . | . Garrison Access . | . Terminal Hacks . | . Fabricator Hacks . | . Repair Station Hacks . | . Recycling Unit Hacks . | . Scanalyzer . | . Garrison Access Hacks . | . Unauthorized Hacks . | . Terminals . | . Fabricators . | . Repair Stations . | . Recycling Units . | . Scanalyzers . | . Garrison Access . | . Data Cores Recovered . | . Used . | . Hacking Detections . | . Full Trace Events . | . Feedback Events . | . Feedback Blocked . | . Robot Schematics Acquired . | . Robots Built . | . Authchips . | . Time . | . Total Robot Build Rating . | . Part Schematics Acquired . | . Parts Built . | . Authchips . | . Time . | . Total Part Build Rating . | . Part Studies Acquired . | . Parts Repaired . | . Time . | . Parts Recycled . | . Recycled Matter . | . Retrieved Matter . | . Retrieved Components . | . Parts Scanalyzed . | . Part Schematics Acquired . | . Parts Damaged . | . Bothacking | -11 ------------ Run | Yrd Used RIF Installer . | . Robots Hacked . | . Non-combat . | . Combat . | . Robot Hacks Applied . | . Relay Couplers Released . | . Fabnet Peak Effective % . | . Robots Rewired . | . Allies Hacked . | . Hacks Repelled . | . Allies | -11 -------- Run | Yrd Total Allies . | . Largest Group . | . Highest-Rated Group . | . Highest-Rated Ally . | . Total Orders . | . Ally Attacks . | . Total Damage . | . Kills . | . Allies Corrupted . | . Allies Melted . | . Intel | -11 ------- Run | Yrd Active Infowar (turns) . | . Robot Analysis Total . | . Derelict Logs Recovered . | . Drone Launches . | . Drone Recoveries . | . Exploration | -11 ------------- Run | Yrd Turns Passed 216 | 216 Spaces Moved 42 | 42 Core 4 | 4 Treads 38 | 38 Legs . | . Wheels . | . Hover . | . Flight . | . Fastest Speed 50 | 50 Average Speed 149 | 149 Slowest Speed 160 | 160 Overloaded Moves . | . Propulsion Burnouts . | . Robots Hopped . | . Potential Cave-ins . | . Cave-ins Triggered . | . Exploration Rate (%) 3 | 3 Regions Visited . Branch Regions . Pre-discovered Areas . | . Known Exits Taken . | . Unknown Exits Taken . | . Scrap Searched . | . Spaces Dug . | . Terrain Destroyed 6 | 6 Melee . | . Projectile . | . AOE 6 | 6 Terrain Rammed 57 | 57 Walls Destroyed . | . Machines Disabled . | . Actions | -11 --------- Run | Yrd Total 115 | 115 Wait . | . Move 42 | 42 Hop . | . Pick Up . | . Fast Attach 6 | 6 Attach . | . Detach . | . Swap . | . Drop . | . Fire 11 | 11 Melee . | . Ram 56 | 56 Kick . | . Crush . | . Escape Stasis . | . Rewire . | . Trap . | . Miscellaneous . | . Route ------- -11/Scrapyard (discovered 1 exit: [*Mat]) History --------- Turn | Location | Event 8 | -11/Scrapyard | Discovered new exit (range 16) 122 | -11/Scrapyard | System corruption reached 10% 152 | -11/Scrapyard | System corruption reached 30% 172 | -11/Scrapyard | Core integrity fell below 50% 194 | -11/Scrapyard | Core integrity fell below 20% 217 | -11/Scrapyard | Core destroyed Last Messages --------------- 00205_ Destabilizing: Core damaged (-12). 00207_ Slammed into Earth. 00207_ Destabilizing: Core damaged (-2). 00207_ K-01 Serf collects debris. 00209_ Slammed into Earth. 00209_ Destabilizing: Core damaged (-12). 00209_ Destabilizing: System corrupted (+2). 00210_ K-01 Serf collects debris. 00211_ Slammed into Earth. 00211_ Destabilizing: Core damaged (-5). 00213_ Slammed into Earth. 00213_ Destabilizing: System corrupted (+1). 00213_ Destabilizing: System corrupted (+2). 00214_ K-01 Serf collects debris. 00215_ System corrupted: Energy discharge (-23). 00215_ Slammed into Earth. 00215_ Destabilizing: Core damaged (-12). 00216_ K-01 Serf collects debris. 00217_ Slammed into Earth. 00217_ Destabilizing: Core damaged (-7). Map ----- +----------------------------------------------------+ | ?????????????????????????????????????????????????? | | ?????????????????????????????????????????????????? | | ?????????????????????????????????????????????????? | | ?????????????????????????????????????????????????? | | ?????????????????????????????????????????????????? | | ?????????????????????????????????????????????????? | | ?????????????????????????????????????????????????? | | ?????????????????????????????????????????????????? | | ?????????????????????????????????????????????????? | | ?????????????????????????????????????????????????? | | ?????????????????????????????????????????????????? | | ?????????????????????????????????????????????????? | | ?????????????????????????????????????????????????? | | ?????????????????????????????????????????????????? | | ?????????????????????????????????????????????????? | | ?????????????????????????????????????????????????? | | ?????????????????????????????????#???????????????? | | ???????????????????????????????? ????????????????? | | ?????????????????????????????## ?????????????????? | | ???????????????????????????? ??????????????????? | | ???????????????????????????? #??????????????????? | | ???????????????????????????? k#??????????????????? | | ????????????????????????#### ####???????????????? | | ???????????##########???# #???????????????? | | ???????????# * #???# #???????????????? | | ???????????# #####@ ###?????????????? | | ???????????# ==## % #?????????????? | | ???????????# = =%=! = #?????????????? | | ???????????# = == = * !* ###?????????????? | | ???????????# ! # # t % < #???????????????? | | ???????????# [ k ##### t #???????????????? | | ???????????# #???##########???????????????? | | ???????????#### ####????????????????????????????? | | ??????????????# #???????????????????????????????? | | ??????????????####???????????????????????????????? | | ?????????????????????????????????????????????????? | | ?????????????????????????????????????????????????? | | ?????????????????????????????????????????????????? | | ?????????????????????????????????????????????????? | | ?????????????????????????????????????????????????? | | ?????????????????????????????????????????????????? | | ?????????????????????????????????????????????????? | | ?????????????????????????????????????????????????? | | ?????????????????????????????????????????????????? | | ?????????????????????????????????????????????????? | | ?????????????????????????????????????????????????? | | ?????????????????????????????????????????????????? | | ?????????????????????????????????????????????????? | | ?????????????????????????????????????????????????? | | ?????????????????????????????????????????????????? | +----------------------------------------------------+ Best States ------------- Heat Dissipation 25 Energy Generation 10 Energy Capacity 125 Matter Stores 231 Matter Capacity 300 Sight Range 16 Terrain Scan Density 10 Evasion (%) 40 Recoil Reduction 2 Item Schematics ----------------- None Robot Schematics ------------------ None Fabricated ------------ Nothing Repaired ---------- Nothing Studied --------- None Alien Tech Used ----------------- None Achievements -------------- None Challenges ------------ None Game ------ Seed IonicConstructAutobeam Manual? 0 Play Time 00:01:08 Cumulative 230.7 hours Start 2026.09.09 @ 21:28:18 End 2026.09.09 @ 21:28:51 Sessions 0 Manual Loads 0 Difficulty Rogue Special Mode None Game No. 339 Rogue 339 Adventurer 0 Explorer 0 Win Type - Total 1 Types 1/0/0/0/0/0/0/0/0/0 Lore% 69 Gallery% 62 Achievement% 47 Wizard Run 0 Options --------- Layout 1 ASCII 0 Keyboard 1 Movement Arrows Keybinds 0 Fullscreen 1 Font 24/Smallcaps Map View 50x35 Zoom Use 0% Tactical HUD 1 Map Filters NONE Filters NONE Steam 1 RUN: e9243ba7-d56e-44ff-a3e4-6499c763d175